[Event "CZE-ch U16 Girls 2020"]
[Site "Kouty nad Desnou"]
[Date "2020.03.11"]
[Round "6.5"]
[White "Stastna, Martina"]
[Black "Vlachynska, Lilian"]
[Result "1-0"]
[ECO "C97"]
[WhiteElo "1700"]
[BlackElo "1224"]
[Annotator "NA RC"]
[PlyCount "95"]
[EventDate "2020.03.07"]
[EventCountry "CZE"]
[SourceTitle "playchess.com"]
[Source "ChessBase"]
[SourceQuality "1"]
[TimeControl "5400+30"]

1. e4 {[%emt 0:00:00]} e5 {[%emt 0:00:00]} 2. Nf3 {[%emt 0:00:00]} Nc6 {[%emt 0:00:00]} 3. Bb5 {[%emt 0:00:37]} a6 {[%emt 0:00:02]} 4. Ba4 {[%emt 0:00:17]} Nf6 {[%emt 0:00:49]} 5. O-O {[%emt 0:00:56]} Be7 {[%emt 0:02:39]} 6. Re1 {[%emt 0:02:01]} b5 {[%emt 0:00:27]} 7. Bb3 {[%emt 0:01:16]} O-O {[%emt 0:05:27]} 8. c3 {[%emt 0:02:24]} d6 {[%emt 0:02:45]} 9. h3 {[%emt 0:00:31]} Na5 {[%emt 0:01:04]} 10. Bc2 {[%emt 0:01:02]} c5 {[%emt 0:00:35]} 11. d4 {[%emt 0:01:29]} Qc7 {[%emt 0:00:39]} 12. Nbd2 {[%emt 0:01:10]} Bd7 {[%emt 0:02:49]} 13. Nf1 {[%emt 0:02:12]} h6 {[%emt 0:08:41]} 14. g4 {[%emt 0:05:23]} Nc4 {[%emt 0:09:54]} 15. Ng3 {[%emt 0:04:03]} Rac8 {[%emt 0:03:25]} 16. d5 {[%emt 0:03:19]} Qd8 {[%emt 0:04:42]} 17. Kh2 {[%emt 0:02:58]} Nh7 {[%emt 0:01:18]} 18. b3 {[%emt 0:00:49]} Nb6 {[%emt 0:00:11]} 19. Nf5 {[%emt 0:01:46]} a5 {[%emt 0:08:45]} 20. Rg1 {[%emt 0:02:18]} f6 {[%emt 0:10:54]} 21. N3h4 {[%emt 0:02:53]} Be8 {[%emt 0:02:51]} 22. Nxe7+ {[%emt 0:02:40]} Qxe7 {[%emt 0:00:09]} 23. Nf5 {[%emt 0:00:22]} Qd8 {[%emt 0:01:22]} 24. f4 {[%emt 0:04:14]} Bg6 {[%emt 0:02:13]} 25. Qe1 {[%emt 0:05:09]} Rc7 {[%emt 0:04:34]} 26. Qh4 {[%emt 0:06:17]} Nc8 {[%emt 0:04:34]} 27. Bd2 {[%emt 0:10:53]} Ne7 {[%emt 0:03:29]} 28. c4 {[%emt 0:06:35]} b4 {[%emt 0:00:26]} 29. a3 {[%emt 0:00:25]} Rd7 {[%emt 0:01:56]} 30. axb4 {[%emt 0:00:41]} axb4 {[%emt 0:00:05]} 31. Ra6 {[%emt 0:00:16]} Re8 {[%emt 0:01:55]} 32. Qg3 {[%emt 0:13:12]} Kh8 {[%emt 0:01:45]} 33. Qh4 {[%emt 0:06:22]} Rf8 {[%emt 0:05:30]} 34. Rg2 {[%emt 0:07:38]} Kg8 {[%emt 0:03:40]} 35. fxe5 {[%emt 0:00:49]} dxe5 {[%emt 0:01:07]} 36. Qf2 {[%emt 0:01:06]} Qc8 {[%emt 0:00:50]} 37. Nxe7+ {[%emt 0:01:09]} Rxe7 {[%emt 0:00:13]} 38. Rc6 {[%emt 0:00:32]} Rc7 {[%emt 0:00:54]} 39. Qxc5 {[%emt 0:01:07]} Rxc6 {[%emt 0:01:14]} 40. dxc6 {[%emt 0:00:00]} Rd8 {[%emt 0:00:00]} 41. Bxb4 {[%emt 0:00:00]} Ng5 {[%emt 0:00:00]} 42. Re2 {[%emt 0:00:00]} Nf3+ {[%emt 0:00:00]} 43. Kg3 {[%emt 0:00:00]} Nd4 {[%emt 0:00:00]} 44. Rd2 {[%emt 0:00:00]} Be8 {[%emt 0:00:00]} 45. Ba5 {[%emt 0:00:00]} Ne6 {[%emt 0:00:00]} 46. Rxd8 {[%emt 0:00:00]} Nxd8 {[%emt 0:00:00]} 47. Bxd8 {[%emt 0:00:00]} Qxd8 {[%emt 0:00:00]} 48. Qd5+ {[%emt 0:00:00]} 1-0

[Event "CZE-ch U16 Girls 2020"]
[Site "Kouty nad Desnou"]
[Date "2020.03.11"]
[Round "6.6"]
[White "Habinova, Alice"]
[Black "Semova, Lada"]
[Result "0-1"]
[ECO "C34"]
[WhiteElo "1474"]
[BlackElo "1477"]
[Annotator "NA"]
[PlyCount "58"]
[EventDate "2020.03.07"]
[EventCountry "CZE"]
[SourceTitle "playchess.com"]
[Source "ChessBase"]
[SourceQuality "1"]
[TimeControl "5400+30"]

1. e4 {[%emt 0:00:00]} e5 {[%emt 0:00:00]} 2. f4 {[%emt 0:00:00]} exf4 {[%emt 0:00:00]} 3. Nf3 {[%emt 0:00:00]} Nf6 {[%emt 0:00:00]} 4. Nc3 {[%emt 0:03:02]} d5 {[%emt 0:02:13]} 5. e5 {[%emt 0:01:24]} Nh5 {[%emt 0:00:04]} 6. d4 {[%emt 0:01:27]} Nc6 {[%emt 0:07:44]} 7. Bb5 {[%emt 0:01:54]} Be7 {[%emt 0:20:23]} 8. O-O {[%emt 0:01:57]} g6 {[%emt 0:05:33]} 9. Ne2 {[%emt 0:04:24]} g5 {[%emt 0:01:59]} 10. Ne1 {[%emt 0:05:29]} Ng7 {[%emt 0:04:05]} 11. b3 {[%emt 0:03:46]} Bd7 {[%emt 0:03:34]} 12. Bb2 {[%emt 0:01:34]} a6 {[%emt 0:00:07]} 13. Bd3 {[%emt 0:01:18]} Be6 {[%emt 0:02:58]} 14. c4 {[%emt 0:02:20]} Qd7 {[%emt 0:02:35]} 15. Rc1 {[%emt 0:04:35]} O-O {[%emt 0:04:34]} 16. Bb1 {[%emt 0:04:42]} Rad8 {[%emt 0:08:34]} 17. a3 {[%emt 0:08:23]} dxc4 {[%emt 0:12:05]} 18. bxc4 {[%emt 0:03:44]} Nxe5 {[%emt 0:02:24]} 19. d5 {[%emt 0:02:33]} Ng6 {[%emt 0:00:05]} 20. Qd4 {[%emt 0:01:41]} f6 {[%emt 0:03:30]} 21. dxe6 {[%emt 0:02:43]} Qxe6 {[%emt 0:00:51]} 22. Qf2 {[%emt 0:04:39]} Rd2 {[%emt 0:02:15]} 23. Rc2 {[%emt 0:03:21]} Rxc2 {[%emt 0:01:31]} 24. Nxc2 {[%emt 0:02:10]} Qxc4 {[%emt 0:00:29]} 25. Qf3 {[%emt 0:01:59]} Qb5 {[%emt 0:01:01]} 26. Ba2+ {[%emt 0:01:33]} Kh8 {[%emt 0:00:32]} 27. Bc3 {[%emt 0:02:55]} Bc5+ {[%emt 0:05:35]} 28. Kh1 {[%emt 0:01:30]} Nh4 {[%emt 0:01:16]} 29. Qg4 {[%emt 0:03:47]} h5 {[%emt 0:00:38]} 0-1

[Event "CZE-ch U16 Girls 2020"]
[Site "Kouty nad Desnou"]
[Date "2020.03.11"]
[Round "6.7"]
[White "Maresova, Michaela"]
[Black "Zilava, Anezka"]
[Result "1/2-1/2"]
[ECO "C21"]
[WhiteElo "1422"]
[BlackElo "1224"]
[Annotator "NA RC"]
[PlyCount "60"]
[EventDate "2020.03.07"]
[EventCountry "CZE"]
[SourceTitle "playchess.com"]
[Source "ChessBase"]
[SourceQuality "1"]
[TimeControl "5400+30"]

1. e4 {[%emt 0:00:00]} e5 {[%emt 0:00:00]} 2. d4 {[%emt 0:00:00]} exd4 {[%emt 0:00:00]} 3. Nf3 {[%emt 0:00:00]} Bc5 {[%emt 0:00:00]} 4. Bc4 {[%emt 0:00:00]} d5 {[%emt 0:00:43]} 5. exd5 {[%emt 0:01:56]} Qe7+ {[%emt 0:00:37]} 6. Qe2 {[%emt 0:01:27]} Qxe2+ {[%emt 0:00:09]} 7. Bxe2 {[%emt 0:00:25]} Nf6 {[%emt 0:00:20]} 8. c3 {[%emt 0:05:03]} dxc3 {[%emt 0:01:39]} 9. Nxc3 {[%emt 0:00:37]} O-O {[%emt 0:00:30]} 10. O-O {[%emt 0:03:32]} Bg4 {[%emt 0:01:41]} 11. h3 {[%emt 0:04:48]} Bh5 {[%emt 0:00:18]} 12. g4 {[%emt 0:03:27]} Bg6 {[%emt 0:01:21]} 13. Bf4 {[%emt 0:08:35]} c6 {[%emt 0:01:28]} 14. dxc6 {[%emt 0:03:20]} Nxc6 {[%emt 0:00:42]} 15. a3 {[%emt 0:07:41]} Nd4 {[%emt 0:03:04]} 16. Nxd4 {[%emt 0:03:14]} Bxd4 {[%emt 0:00:12]} 17. Bf3 {[%emt 0:10:17]} Bxc3 {[%emt 0:04:14]} 18. bxc3 {[%emt 0:00:46]} Be4 {[%emt 0:00:24]} 19. Bxe4 {[%emt 0:02:48]} Nxe4 {[%emt 0:00:18]} 20. Rac1 {[%emt 0:04:33]} Rac8 {[%emt 0:01:29]} 21. Be5 {[%emt 0:03:02]} Nd2 {[%emt 0:00:39]} 22. Bd6 {[%emt 0:06:34]} Rfd8 {[%emt 0:00:42]} 23. Be7 {[%emt 0:00:29]} Re8 {[%emt 0:00:12]} 24. Rfd1 {[%emt 0:00:32]} Rxe7 {[%emt 0:03:03]} 25. Rxd2 {[%emt 0:00:19]} Rec7 {[%emt 0:00:40]} 26. Rd3 {[%emt 0:01:14]} Kf8 {[%emt 0:00:35]} 27. Re3 {[%emt 0:01:18]} Re7 {[%emt 0:01:38]} 28. Rce1 {[%emt 0:02:37]} Rxe3 {[%emt 0:01:35]} 29. Rxe3 {[%emt 0:00:21]} Re8 {[%emt 0:00:15]} 30. Rxe8+ {[%emt 0:07:56]} Kxe8 {[%emt 0:00:06]} 1/2-1/2

[Event "CZE-ch U16 Girls 2020"]
[Site "Kouty nad Desnou"]
[Date "2020.03.11"]
[Round "6.8"]
[White "Merinska, Julie"]
[Black "Ruzickova, Ema"]
[Result "0-1"]
[ECO "B21"]
[WhiteElo "1182"]
[BlackElo "1409"]
[Annotator "NA RC"]
[PlyCount "84"]
[EventDate "2020.03.07"]
[EventCountry "CZE"]
[SourceTitle "playchess.com"]
[Source "ChessBase"]
[SourceQuality "1"]
[TimeControl "5400+30"]

1. e4 {[%emt 0:00:00]} c5 {[%emt 0:00:00]} 2. f4 {[%emt 0:00:00]} d5 {[%emt 0:00:00]} 3. exd5 {[%emt 0:00:00]} Nf6 {[%emt 0:00:07]} 4. Nc3 {[%emt 0:01:15]} Nxd5 {[%emt 0:01:46]} 5. Nxd5 {[%emt 0:00:40]} Qxd5 {[%emt 0:00:48]} 6. Nf3 {[%emt 0:00:38]} Nc6 {[%emt 0:09:53]} 7. b3 {[%emt 0:09:46]} Nd4 {[%emt 0:13:38]} 8. Nxd4 {[%emt 0:01:37]} Qxd4 {[%emt 0:01:53]} 9. Ba3 {[%emt 0:01:19]} Bg4 {[%emt 0:12:25]} 10. Bxc5 {[%emt 0:13:27]} Qe4+ {[%emt 0:12:55]} 11. Be2 {[%emt 0:04:30]} Qxg2 {[%emt 0:03:25]} 12. Rg1 {[%emt 0:02:06]} Bxe2 {[%emt 0:01:03]} 13. Qxe2 {[%emt 0:03:14]} Qxe2+ {[%emt 0:01:45]} 14. Kxe2 {[%emt 0:00:05]} b6 {[%emt 0:00:54]} 15. Bd4 {[%emt 0:00:47]} f6 {[%emt 0:01:23]} 16. Kf3 {[%emt 0:02:59]} Kf7 {[%emt 0:03:24]} 17. Rae1 {[%emt 0:05:29]} e6 {[%emt 0:03:20]} 18. Re3 {[%emt 0:01:30]} h6 {[%emt 0:05:59]} 19. h4 {[%emt 0:02:49]} Bd6 {[%emt 0:04:59]} 20. Rd3 {[%emt 0:05:52]} Rhd8 {[%emt 0:00:55]} 21. h5 {[%emt 0:03:03]} Rac8 {[%emt 0:07:11]} 22. Rc3 {[%emt 0:10:24]} Bb4 {[%emt 0:04:14]} 23. Rxc8 {[%emt 0:03:52]} Rxc8 {[%emt 0:00:09]} 24. c3 {[%emt 0:00:46]} Bd6 {[%emt 0:01:46]} 25. Re1 {[%emt 0:02:26]} Rg8 {[%emt 0:01:05]} 26. Rf1 {[%emt 0:09:07]} g5 {[%emt 0:01:40]} 27. fxg5 {[%emt 0:04:08]} Rxg5 {[%emt 0:00:09]} 28. Rh1 {[%emt 0:01:51]} Rg3+ {[%emt 0:00:20]} 29. Kf2 {[%emt 0:01:21]} f5 {[%emt 0:01:05]} 30. a4 {[%emt 0:03:12]} Rg8 {[%emt 0:02:05]} 31. Rg1 {[%emt 0:04:17]} e5 {[%emt 0:00:19]} 32. Rxg8 {[%emt 0:01:02]} Kxg8 {[%emt 0:00:04]} 33. Be3 {[%emt 0:01:25]} f4 {[%emt 0:00:09]} 34. Bxf4 {[%emt 0:00:12]} exf4 {[%emt 0:00:05]} 35. Kf3 {[%emt 0:00:15]} Kf7 {[%emt 0:00:19]} 36. c4 {[%emt 0:01:00]} Ke6 {[%emt 0:00:55]} 37. Kg4 {[%emt 0:01:28]} Ke5 {[%emt 0:00:56]} 38. Kf3 {[%emt 0:00:21]} Kf5 {[%emt 0:00:40]} 39. b4 {[%emt 0:00:40]} Bxb4 {[%emt 0:00:22]} 40. d3 {[%emt 0:00:00]} Bc5 {[%emt 0:00:00]} 41. Kg2 {[%emt 0:00:00]} Kg4 {[%emt 0:00:00]} 42. Kh2 {[%emt 0:00:00]} Kf3 {[%emt 0:00:00]} 0-1

[Event "CZE-ch U16 Girls 2020"]
[Site "Kouty nad Desnou"]
[Date "2020.03.11"]
[Round "6.9"]
[White "Londinova, Jasmina Marie"]
[Black "Saskova, Renata"]
[Result "0-1"]
[ECO "B23"]
[WhiteElo "1155"]
[BlackElo "1191"]
[Annotator "NA RC"]
[PlyCount "36"]
[EventDate "2020.03.07"]
[EventCountry "CZE"]
[SourceTitle "playchess.com"]
[Source "ChessBase"]
[SourceQuality "1"]
[TimeControl "5400+30"]

1. e4 {[%emt 0:00:00]} c5 {[%emt 0:00:00]} 2. Nc3 {[%emt 0:00:23]} d6 {[%emt 0:00:00]} 3. f4 {[%emt 0:01:01]} e6 {[%emt 0:02:13]} 4. Bb5+ {[%emt 0:01:24]} Bd7 {[%emt 0:02:37]} 5. Bxd7+ {[%emt 0:00:24]} Qxd7 {[%emt 0:00:19]} 6. d3 {[%emt 0:00:17]} Nf6 {[%emt 0:03:27]} 7. Nf3 {[%emt 0:01:44]} Be7 {[%emt 0:01:06]} 8. O-O {[%emt 0:01:10]} O-O {[%emt 0:00:20]} 9. Ng5 {[%emt 0:02:50]} h6 {[%emt 0:04:50]} 10. Nh3 {[%emt 0:00:19]} Nc6 {[%emt 0:01:52]} 11. Be3 {[%emt 0:04:59]} a6 {[%emt 0:02:43]} 12. Qe1 {[%emt 0:01:13]} d5 {[%emt 0:07:17]} 13. exd5 {[%emt 0:02:31]} exd5 {[%emt 0:05:21]} 14. Ne2 {[%emt 0:00:39]} Rfe8 {[%emt 0:06:05]} 15. Qg3 {[%emt 0:03:57]} Bd6 {[%emt 0:05:10]} 16. Qf3 {[%emt 0:02:34]} Qe6 {[%emt 0:04:55]} 17. Ng3 {[%emt 0:05:51]} Qxe3+ {[%emt 0:01:53]} 18. Qxe3 {[%emt 0:00:15]} Rxe3 0-1

[Event "CZE-ch U16 Girls 2020"]
[Site "Kouty nad Desnou"]
[Date "2020.03.12"]
[Round "7.1"]
[White "Dvorakova, Olga"]
[Black "Dudova, Pavlina"]
[Result "1/2-1/2"]
[ECO "D20"]
[WhiteElo "1793"]
[BlackElo "1499"]
[Annotator "NA"]
[PlyCount "72"]
[EventDate "2020.03.07"]
[EventCountry "CZE"]
[SourceTitle "playchess.com"]
[Source "ChessBase"]
[SourceQuality "1"]
[TimeControl "5400+30"]

1. d4 {[%emt 0:00:00]} d5 {[%emt 0:00:00]} 2. c4 {[%emt 0:00:00]} dxc4 {[%emt 0:00:00]} 3. e3 {[%emt 0:04:24]} Nf6 {[%emt 0:02:15]} 4. Bxc4 {[%emt 0:01:29]} e6 {[%emt 0:04:42]} 5. Nc3 {[%emt 0:02:56]} Be7 {[%emt 0:04:50]} 6. Nf3 {[%emt 0:01:29]} Nbd7 {[%emt 0:02:21]} 7. O-O {[%emt 0:02:13]} O-O {[%emt 0:00:52]} 8. a3 {[%emt 0:06:48]} c5 {[%emt 0:08:02]} 9. dxc5 {[%emt 0:12:54]} Nxc5 {[%emt 0:01:22]} 10. Qc2 {[%emt 0:10:52]} a6 {[%emt 0:04:51]} 11. b4 {[%emt 0:03:45]} Ncd7 {[%emt 0:00:51]} 12. Bb2 {[%emt 0:02:29]} b5 {[%emt 0:02:41]} 13. Be2 {[%emt 0:03:02]} Bb7 {[%emt 0:01:57]} 14. Rac1 {[%emt 0:01:56]} Rc8 {[%emt 0:03:42]} 15. Qb1 {[%emt 0:01:58]} Qb6 {[%emt 0:08:03]} 16. Rfd1 {[%emt 0:06:18]} Rc7 {[%emt 0:12:07]} 17. Nd2 {[%emt 0:09:36]} Rfc8 {[%emt 0:05:38]} 18. Nce4 {[%emt 0:08:54]} Bxe4 {[%emt 0:01:58]} 19. Nxe4 {[%emt 0:00:26]} Nxe4 {[%emt 0:01:18]} 20. Qxe4 {[%emt 0:00:10]} Rxc1 {[%emt 0:00:54]} 21. Rxc1 {[%emt 0:02:11]} Rxc1+ {[%emt 0:00:47]} 22. Bxc1 {[%emt 0:00:02]} Qc7 {[%emt 0:06:54]} 23. Bb2 {[%emt 0:01:10]} Qd6 {[%emt 0:05:47]} 24. Bd3 {[%emt 0:07:01]} f5 {[%emt 0:02:16]} 25. Qd4 {[%emt 0:00:43]} Qxd4 {[%emt 0:00:41]} 26. Bxd4 {[%emt 0:03:14]} Kf7 {[%emt 0:02:35]} 27. f4 {[%emt 0:02:29]} Bf6 {[%emt 0:04:18]} 28. Kf2 {[%emt 0:00:12]} Bxd4 {[%emt 0:01:39]} 29. exd4 {[%emt 0:00:02]} Nb6 {[%emt 0:00:39]} 30. g3 {[%emt 0:01:11]} Nd5 {[%emt 0:00:58]} 31. Ke2 {[%emt 0:01:18]} Ke7 {[%emt 0:01:28]} 32. Kd2 {[%emt 0:00:03]} Kd6 {[%emt 0:00:32]} 33. Be2 {[%emt 0:02:18]} Kc6 {[%emt 0:01:37]} 34. Kc2 {[%emt 0:00:35]} Kb6 {[%emt 0:01:09]} 35. Kb3 {[%emt 0:00:28]} g6 {[%emt 0:01:07]} 36. Bd3 {[%emt 0:01:21]} Ne3 {[%emt 0:01:49]} 1/2-1/2

[Event "CZE-ch U16 Girls 2020"]
[Site "Kouty nad Desnou"]
[Date "2020.03.12"]
[Round "7.2"]
[White "Gregurkova, Nikola"]
[Black "Vsetulova, Viktorie"]
[Result "1-0"]
[ECO "B01"]
[WhiteElo "1642"]
[BlackElo "1334"]
[Annotator "NA"]
[PlyCount "69"]
[EventDate "2020.03.07"]
[EventCountry "CZE"]
[SourceTitle "playchess.com"]
[Source "ChessBase"]
[SourceQuality "1"]
[TimeControl "5400+30"]

1. e4 {[%emt 0:00:00]} d5 {[%emt 0:00:00]} 2. exd5 {[%emt 0:00:00]} Nf6 {[%emt 0:00:00]} 3. d4 {[%emt 0:01:33]} Nxd5 {[%emt 0:00:00]} 4. Nf3 {[%emt 0:04:15]} g6 {[%emt 0:00:05]} 5. c4 {[%emt 0:03:05]} Nb6 {[%emt 0:00:16]} 6. Nc3 {[%emt 0:05:01]} Bg7 {[%emt 0:01:03]} 7. c5 {[%emt 0:03:44]} Nd5 {[%emt 0:00:43]} 8. Bc4 {[%emt 0:03:08]} c6 {[%emt 0:01:21]} 9. O-O {[%emt 0:03:37]} O-O {[%emt 0:01:40]} 10. Re1 {[%emt 0:02:09]} Nxc3 {[%emt 0:14:22]} 11. bxc3 {[%emt 0:00:11]} b5 {[%emt 0:01:13]} 12. Bb3 {[%emt 0:15:31]} Nd7 {[%emt 0:08:23]} 13. Bg5 {[%emt 0:08:47]} Nf6 {[%emt 0:02:49]} 14. Ne5 {[%emt 0:12:23]} Bb7 {[%emt 0:13:34]} 15. Qf3 {[%emt 0:05:46]} Qc7 {[%emt 0:05:56]} 16. Re2 {[%emt 0:13:07]} Rae8 {[%emt 0:05:51]} 17. Rae1 {[%emt 0:01:45]} Nd5 {[%emt 0:26:16]} 18. Bxd5 {[%emt 0:04:31]} cxd5 {[%emt 0:00:51]} 19. Bf4 {[%emt 0:02:43]} Qd8 {[%emt 0:01:57]} 20. c6 {[%emt 0:04:45]} Bxe5 {[%emt 0:03:56]} 21. cxb7 {[%emt 0:00:34]} Bxf4 {[%emt 0:01:18]} 22. Qxf4 {[%emt 0:00:02]} e6 {[%emt 0:01:46]} 23. Rb1 {[%emt 0:02:51]} Qb6 {[%emt 0:06:01]} 24. Reb2 {[%emt 0:01:30]} a6 {[%emt 0:01:04]} 25. a4 {[%emt 0:00:34]} Qxb7 {[%emt 0:00:42]} 26. axb5 {[%emt 0:00:18]} axb5 {[%emt 0:00:06]} 27. Rxb5 {[%emt 0:00:05]} Qc6 {[%emt 0:00:44]} 28. Rc5 {[%emt 0:01:09]} Qa4 {[%emt 0:01:27]} 29. h4 {[%emt 0:00:41]} h5 {[%emt 0:00:32]} 30. g4 {[%emt 0:00:34]} Qa6 {[%emt 0:00:31]} 31. gxh5 {[%emt 0:00:30]} Kg7 {[%emt 0:00:25]} 32. hxg6 {[%emt 0:00:34]} fxg6 {[%emt 0:00:24]} 33. Rc7+ {[%emt 0:00:20]} Kg8 {[%emt 0:00:35]} 34. Qh6 {[%emt 0:00:18]} Rf7 {[%emt 0:00:38]} 35. Qxg6+ {[%emt 0:00:15]} 1-0

[Event "CZE-ch U16 Girls 2020"]
[Site "Kouty nad Desnou"]
[Date "2020.03.12"]
[Round "7.3"]
[White "Vavrinkova, Anna"]
[Black "Stastna, Martina"]
[Result "1/2-1/2"]
[ECO "C77"]
[WhiteElo "1622"]
[BlackElo "1700"]
[Annotator "NA"]
[PlyCount "81"]
[EventDate "2020.03.07"]
[EventCountry "CZE"]
[SourceTitle "playchess.com"]
[Source "ChessBase"]
[SourceQuality "1"]
[TimeControl "5400+30"]

1. e4 {[%emt 0:00:00]} e5 {[%emt 0:00:00]} 2. Nf3 {[%emt 0:00:00]} Nc6 {[%emt 0:00:18]} 3. Bb5 {[%emt 0:01:53]} a6 {[%emt 0:01:13]} 4. Ba4 {[%emt 0:00:50]} Nf6 {[%emt 0:00:56]} 5. d3 {[%emt 0:01:01]} b5 {[%emt 0:01:20]} 6. Bb3 {[%emt 0:00:07]} Be7 {[%emt 0:01:52]} 7. c3 {[%emt 0:02:37]} Bb7 {[%emt 0:03:34]} 8. O-O {[%emt 0:02:09]} O-O {[%emt 0:01:21]} 9. Re1 {[%emt 0:02:45]} Na5 {[%emt 0:03:00]} 10. Bc2 {[%emt 0:01:27]} d6 {[%emt 0:01:04]} 11. Nbd2 {[%emt 0:03:56]} Re8 {[%emt 0:02:09]} 12. Nf1 {[%emt 0:01:50]} Bf8 {[%emt 0:01:56]} 13. Bg5 {[%emt 0:01:16]} h6 {[%emt 0:03:31]} 14. Bh4 {[%emt 0:00:41]} c5 {[%emt 0:01:21]} 15. Ne3 {[%emt 0:02:57]} g6 {[%emt 0:06:10]} 16. h3 {[%emt 0:02:59]} Bg7 {[%emt 0:02:22]} 17. b4 {[%emt 0:05:49]} cxb4 {[%emt 0:03:00]} 18. cxb4 {[%emt 0:03:20]} Nc6 {[%emt 0:00:16]} 19. a3 {[%emt 0:00:40]} Qd7 {[%emt 0:02:55]} 20. Bb3 {[%emt 0:01:31]} Kh7 {[%emt 0:02:16]} 21. Rc1 {[%emt 0:03:29]} Nd8 {[%emt 0:01:26]} 22. Qc2 {[%emt 0:04:17]} Ne6 {[%emt 0:03:31]} 23. Qa2 {[%emt 0:07:24]} a5 {[%emt 0:02:56]} 24. Qb2 {[%emt 0:04:50]} Nf4 {[%emt 0:05:51]} 25. Red1 {[%emt 0:04:04]} axb4 {[%emt 0:03:35]} 26. axb4 {[%emt 0:00:07]} Rec8 {[%emt 0:00:46]} 27. Rxc8 {[%emt 0:05:20]} Rxc8 {[%emt 0:00:12]} 28. Qd2 {[%emt 0:00:50]} Kg8 {[%emt 0:03:35]} 29. Ne1 {[%emt 0:03:43]} d5 {[%emt 0:04:42]} 30. exd5 {[%emt 0:05:35]} N6xd5 {[%emt 0:03:04]} 31. Nxd5 {[%emt 0:00:27]} Bxd5 {[%emt 0:00:45]} 32. Bxd5 {[%emt 0:06:43]} Qxd5 {[%emt 0:07:18]} 33. Bg3 {[%emt 0:04:02]} Ne6 {[%emt 0:09:17]} 34. Nc2 {[%emt 0:02:05]} Nd4 {[%emt 0:02:04]} 35. Nxd4 {[%emt 0:06:29]} Qxd4 {[%emt 0:00:16]} 36. Qe3 {[%emt 0:04:54]} Rc4 {[%emt 0:08:24]} 37. dxc4 {[%emt 0:01:19]} Qxd1+ {[%emt 0:00:09]} 38. Kh2 {[%emt 0:00:03]} bxc4 {[%emt 0:00:56]} 39. Bxe5 {[%emt 0:01:31]} Bxe5+ {[%emt 0:00:42]} 40. Qxe5 {[%emt 0:00:06]} Qb3 {[%emt 0:00:27]} 41. Qe8+ 1/2-1/2

[Event "CZE-ch U16 Girls 2020"]
[Site "Kouty nad Desnou"]
[Date "2020.03.12"]
[Round "7.4"]
[White "Kuncicka, Klara"]
[Black "Semova, Lada"]
[Result "1/2-1/2"]
[ECO "B34"]
[WhiteElo "1223"]
[BlackElo "1477"]
[Annotator "NA"]
[PlyCount "77"]
[EventDate "2020.03.07"]
[EventCountry "CZE"]
[SourceTitle "playchess.com"]
[Source "ChessBase"]
[SourceQuality "1"]
[TimeControl "5400+30"]

1. e4 {[%emt 0:00:00]} c5 {[%emt 0:00:00]} 2. Nf3 {[%emt 0:00:00]} Nc6 {[%emt 0:00:00]} 3. Nc3 {[%emt 0:00:00]} g6 {[%emt 0:00:00]} 4. d4 {[%emt 0:00:17]} cxd4 {[%emt 0:00:00]} 5. Nxd4 {[%emt 0:00:07]} Bg7 {[%emt 0:00:17]} 6. Be3 {[%emt 0:00:05]} Nf6 {[%emt 0:00:08]} 7. Be2 {[%emt 0:00:37]} O-O {[%emt 0:00:08]} 8. O-O {[%emt 0:00:17]} d5 {[%emt 0:08:15]} 9. Nxc6 {[%emt 0:12:56]} bxc6 {[%emt 0:00:56]} 10. e5 {[%emt 0:00:23]} Ne8 {[%emt 0:00:05]} 11. f4 {[%emt 0:00:41]} f6 {[%emt 0:00:24]} 12. Qd2 {[%emt 0:15:11]} fxe5 {[%emt 0:01:37]} 13. fxe5 {[%emt 0:00:13]} Rxf1+ {[%emt 0:00:20]} 14. Rxf1 {[%emt 0:00:06]} Bxe5 {[%emt 0:01:27]} 15. Bh6 {[%emt 0:02:45]} Bg7 {[%emt 0:02:09]} 16. Kh1 {[%emt 0:19:11]} Qd6 {[%emt 0:02:08]} 17. Bd3 {[%emt 0:10:17]} Bxh6 {[%emt 0:14:40]} 18. Qxh6 {[%emt 0:00:10]} Ng7 {[%emt 0:00:02]} 19. Ne2 {[%emt 0:13:17]} e5 {[%emt 0:00:53]} 20. Ng3 {[%emt 0:00:25]} Bd7 {[%emt 0:06:46]} 21. c4 {[%emt 0:04:10]} Rf8 {[%emt 0:05:03]} 22. Rxf8+ {[%emt 0:00:49]} Qxf8 {[%emt 0:00:05]} 23. cxd5 {[%emt 0:01:52]} cxd5 {[%emt 0:00:05]} 24. Qg5 {[%emt 0:01:18]} Bf5 {[%emt 0:01:57]} 25. Bxf5 {[%emt 0:03:13]} Nxf5 {[%emt 0:00:05]} 26. Nxf5 {[%emt 0:01:41]} Qxf5 {[%emt 0:00:06]} 27. Qd8+ {[%emt 0:00:11]} Kg7 {[%emt 0:01:08]} 28. Qe7+ {[%emt 0:01:36]} Kh6 {[%emt 0:00:52]} 29. h3 {[%emt 0:00:19]} Qf1+ {[%emt 0:08:38]} 30. Kh2 {[%emt 0:00:13]} e4 {[%emt 0:00:02]} 31. Qh4+ {[%emt 0:02:12]} Kg7 {[%emt 0:00:10]} 32. Qe7+ {[%emt 0:00:12]} Qf7 {[%emt 0:00:57]} 33. Qe5+ {[%emt 0:00:26]} Kh6 {[%emt 0:00:03]} 34. a3 {[%emt 0:03:58]} Qf5 {[%emt 0:01:28]} 35. Qd4 {[%emt 0:01:15]} a6 {[%emt 0:02:08]} 36. Qe3+ {[%emt 0:01:54]} Qg5 {[%emt 0:01:30]} 37. Qd4 {[%emt 0:00:37]} e3 {[%emt 0:01:58]} 38. h4 {[%emt 0:00:36]} Qf5 {[%emt 0:01:19]} 39. Qxe3+ {[%emt 0:00:26]} 1/2-1/2